fUSD/lending_fUSD_20240423
["ID","MTS","AMOUNT","RATE_DAILY","PERIOD"]
[323274255,1713862857298,313.7807292,0.000115,2]
[323274256,1713862860820,250.0,0.00010823,2]
[323274263,1713862916526,194.40257028,0.000115,2]
[323274264,1713862920644,4410.96730875,0.000115,2]
[323274267,1713862932805,2321.74176097,0.000115,2]
[323274269,1713862946821,162.36,0.00010888,2]
[323274272,1713862958990,418.75091594,0.000115,2]
[323274275,1713862975730,385.51265654,0.000115,2]
[323274276,1713862978220,871.62397374,0.000115,2]
[323274277,1713862982716,871.62397374,0.000115,2]
[323274278,1713862983301,150.0,0.000115,2]
[323274280,1713862986088,3242.85,0.00010808,2]
[323274281,1713862994394,21571.578537,0.000115,2]
[323274285,1713863079672,575.87,0.00010808,2]
[323274286,1713863121488,1747.3,0.000115,2]
[323274288,1713863137591,246.03012157,0.00010997,2]
[323274289,1713863151981,537.73,8.928e-05,2]
[323274290,1713863152153,537.73,0.00011192,2]
[323274291,1713863163219,150.0,0.000115,2]
[323274292,1713863170199,23900.0,0.00010872,2]
[323274293,1713863185193,620.98932752,0.000115,2]
[323274294,1713863191578,-3080.89024229,0.00011501,2]
[323274295,1713863191598,-4583.44785109,0.00011501,2]
[323274296,1713863211219,176.31,0.00010844,2]
[323274351,1713863245821,151.2709204,0.00011443,2]
[323274352,1713863271026,4583.44785109,0.00011501,2]
[323274353,1713863275091,3080.89024229,0.00011501,2]
[323274375,1713863432240,-719.39443001,0.00011502,2]
[323274376,1713863432251,-373.84983499,0.00011532,2]
[323274377,1713863432260,-5397.583635,0.00011589,2]
[323274378,1713863432271,-680.30290851,0.00011589,2]
[323274379,1713863432346,-1054.26095649,0.00011589,2]
[323274380,1713863432356,-209.9715,0.0001159,2]
[323274381,1713863432368,-6051.40651526,0.00011591,2]
[323274385,1713863432728,162.99441572,0.00011432,2]
[323274386,1713863438154,-162.99441572,0.00011511,2]
[323274387,1713863438165,-3155.43028474,0.00011591,2]
[323274388,1713863438174,-816.8169,0.00011591,2]
[323274389,1713863438183,-1000.0,0.00011591,2]
[323274390,1713863438194,-1000.0,0.00011592,2]
[323274391,1713863438203,-290.01,0.00011592,2]
[323274392,1713863438213,-159.6085854,0.00011599,2]
[323274393,1713863438222,-500.0,0.000116,4]
[323274394,1713863438231,-180.16217753,0.000116,2]
[323274395,1713863438241,-181.03262709,0.00011632,2]
[323274396,1713863438250,-499.99,0.00011632,2]
[323274397,1713863438260,-262.21,0.00011632,2]
[323274398,1713863438270,-3418.45849101,0.00011677,2]
[323274399,1713863438279,-154.73172331,0.00011681,2]
[323274400,1713863438288,-14623.87376292,0.00011688,2]
[323274401,1713863438297,-1146.13869524,0.00011688,2]
[323274402,1713863438306,-302.0,0.00011688,2]
[323274403,1713863438315,-1603.33188358,0.00011688,2]
[323274404,1713863438325,-155.25533383,0.00011689,2]
[323274405,1713863438334,-155.21727484,0.00011689,2]
[323274406,1713863438343,-167.52787288,0.00011689,2]
[323274407,1713863438352,-175.69423454,0.00011689,2]
[323274408,1713863438361,-181.40893477,0.00011689,2]
[323274409,1713863438373,-155.75086121,0.00011689,2]
[323274410,1713863438382,-194.75745917,0.00011689,2]
[323274411,1713863438391,-410.31474454,0.00011689,2]
[323274412,1713863438400,-621.61066355,0.00011689,2]
[323274413,1713863438409,-181.28407634,0.00011689,2]
[323274414,1713863438418,-785.14568492,0.00011689,2]
[323274415,1713863438428,-1163.66340728,0.00011689,2]
[323274416,1713863438438,-200.7780972,0.00011689,2]
[323274417,1713863438447,-321.86410706,0.00011689,2]
[323274418,1713863438456,-342.22232771,0.00011689,2]
[323274419,1713863438466,-682.91244968,0.00011689,2]
[323274420,1713863438475,-164.4337922,0.00011689,2]
[323274421,1713863438484,-281.53954571,0.00011689,2]
[323274422,1713863438493,-782.66617723,0.00011689,2]
[323274423,1713863438502,-444.3911085,0.00011689,2]
[323274424,1713863438511,-509.10572228,0.00011689,2]
[323274425,1713863438520,-206.37011773,0.00011689,2]
[323274426,1713863438530,-35197.09187214,0.00011689,2]
[323274428,1713863438539,-4328.60972408,0.00011689,2]
[323274430,1713863438548,-406.85863985,0.00011689,2]
[323274432,1713863438557,-1991.33653532,0.00011689,2]
[323274434,1713863438567,-881.72521313,0.00011689,2]
[323274437,1713863438576,-210.59510764,0.00011689,2]
[323274438,1713863438586,-315.48373328,0.00011689,2]
[323274441,1713863438596,-17208.63,0.00011689,2]
[323274445,1713863438606,-500.0,0.00011689,2]
[323274448,1713863438618,-1313.87,0.00011689,2]
[323274452,1713863438628,-1347.41,0.00011689,2]
[323274454,1713863438637,-4277.54,0.00011689,2]
[323274457,1713863438647,-500.0,0.00011689,2]
[323274459,1713863438657,-500.0,0.00011689,2]
[323274460,1713863438666,-500.0,0.00011689,2]
[323274462,1713863438676,-500.0,0.00011689,2]
[323274464,1713863438686,-500.0,0.00011689,2]
[323274467,1713863438695,-500.0,0.00011689,2]
[323274468,1713863438705,-1214.55,0.00011689,2]
[323274471,1713863438715,-5416.68,0.00011689,2]
[323274473,1713863438724,-500.0,0.00011689,2]
[323274474,1713863438734,-500.0,0.00011689,2]
[323274476,1713863438745,-500.0,0.00011689,2]
[323274478,1713863438755,-11274.13,0.00011689,2]
[323274480,1713863438765,-5172.69,0.00011689,2]
[323274483,1713863438777,-1166.79,0.00011689,2]
[323274485,1713863438787,-3449.05,0.00011689,2]
[323274487,1713863438797,-500.0,0.00011689,2]
[323274489,1713863438806,-561.63,0.00011689,2]
[323274490,1713863438815,-500.0,0.00011689,2]
[323274492,1713863438824,-6295.74,0.00011689,2]
[323274495,1713863438835,-975.79,0.00011689,2]
[323274497,1713863438845,-500.0,0.00011689,2]
[323274499,1713863438855,-1073.37,0.00011689,2]
[323274501,1713863438866,-500.0,0.00011689,2]
[323274503,1713863438877,-633.45,0.00011689,2]
[323274505,1713863438887,-1729.29,0.00011689,2]
[323274507,1713863438897,-207.90893086,0.0001169,2]
[323274508,1713863438907,-3006.10621285,0.0001169,2]
[323274511,1713863438916,-500.0,0.0001169,2]
[323274513,1713863438926,-500.0,0.0001169,2]
[323274515,1713863438935,-500.0,0.0001169,2]
[323274517,1713863438943,-500.0,0.0001169,2]
[323274519,1713863438953,-500.0,0.0001169,2]
[323274521,1713863438962,-543.12,0.0001169,2]
[323274523,1713863438971,-169.99078475,0.0001169,2]
[323274524,1713863438980,-500.0,0.0001169,2]
[323274526,1713863438989,-1021.72,0.0001169,2]
[323274528,1713863438998,-500.0,0.0001169,2]
[323274532,1713863439008,-500.0,0.0001169,2]
[323274534,1713863439017,-497.69127045,0.0001169,2]
[323274536,1713863439028,-500.0,0.0001169,2]
[323274539,1713863439037,-500.0,0.0001169,2]
[323274540,1713863439047,-618.90849093,0.0001169,2]
[323274542,1713863439055,-498.3639751,0.0001169,2]
[323274544,1713863439064,-955.58,0.0001169,2]
[323274546,1713863439073,-1134.53,0.0001169,2]
[323274548,1713863439082,-500.0,0.0001169,2]
[323274550,1713863439092,-500.0,0.0001169,2]
[323274552,1713863439102,-500.0,0.0001169,2]
[323274554,1713863439114,-946.98,0.0001169,2]
[323274556,1713863439124,-500.0,0.0001169,2]
[323274558,1713863439133,-500.0,0.0001169,2]
[323274560,1713863439142,-500.0,0.0001169,2]
[323274562,1713863439153,-500.0,0.0001169,2]
[323274564,1713863439162,-500.0,0.0001169,2]
[323274566,1713863439171,-304.26435674,0.0001169,2]
[323274568,1713863439181,-500.0,0.0001169,2]
[323274570,1713863439190,-507.94123038,0.0001169,2]
[323274572,1713863439199,-500.0,0.0001169,2]
[323274574,1713863439209,-549.22850341,0.0001169,2]
[323274576,1713863439218,-500.0,0.0001169,2]
[323274578,1713863439228,-500.0,0.0001169,2]
[323274580,1713863439237,-500.0,0.0001169,2]
[323274582,1713863439246,-500.0,0.0001169,2]
[323274584,1713863439256,-500.0,0.0001169,2]
[323274586,1713863439266,-500.0,0.0001169,2]
[323274589,1713863439277,-500.0,0.0001169,2]
[323274591,1713863439287,-282.75938724,0.0001169,2]
[323274593,1713863439298,-506.35789469,0.0001169,2]
[323274594,1713863439307,-1005.23,0.0001169,2]
[323274596,1713863439316,-500.0,0.0001169,2]
[323274599,1713863439326,-500.0,0.0001169,2]
[323274600,1713863439337,-500.0,0.0001169,2]
[323274602,1713863439348,-500.0,0.0001169,2]
[323274604,1713863439358,-1200.7,0.0001169,2]
[323274606,1713863439370,-500.0,0.0001169,2]
[323274607,1713863439381,-863.43,0.0001169,2]
[323274609,1713863439390,-500.0,0.0001169,2]
[323274611,1713863439400,-500.0,0.0001169,2]
[323274613,1713863439410,-500.0,0.0001169,2]
[323274614,1713863439420,-500.0,0.0001169,2]
[323274616,1713863439430,-500.0,0.0001169,2]
[323274618,1713863439440,-573.58,0.0001169,2]
[323274619,1713863439449,-500.0,0.0001169,2]
[323274621,1713863439459,-500.0,0.0001169,2]
[323274623,1713863439469,-574.96461919,0.0001169,2]
[323274624,1713863439478,-500.0,0.0001169,2]
[323274626,1713863439488,-506.88789594,0.0001169,2]
[323274628,1713863439498,-500.0,0.0001169,2]
[323274630,1713863439507,-485.53135173,0.0001169,2]
[323274632,1713863439517,-1000.58,0.0001169,2]
[323274633,1713863439528,-500.0,0.0001169,2]
[323274635,1713863439537,-500.0,0.0001169,2]
[323274637,1713863439548,-500.0,0.0001169,2]
[323274639,1713863439557,-517.89,0.0001169,2]
[323274640,1713863439567,-500.0,0.0001169,2]
[323274641,1713863439578,-500.0,0.0001169,2]
[323274643,1713863439588,-611.81012403,0.0001169,2]
[323274645,1713863439597,-500.0,0.0001169,2]
[323274646,1713863439607,-505.26171624,0.0001169,2]
[323274648,1713863439618,-500.0,0.0001169,2]
[323274649,1713863439628,-450.68402175,0.0001169,2]
[323274651,1713863439638,-500.0,0.0001169,2]
[323274652,1713863439649,-460.71191539,0.0001169,2]
[323274654,1713863439658,-500.0,0.0001169,2]
[323274655,1713863439667,-500.0,0.0001169,2]
[323274657,1713863439677,-500.0,0.0001169,2]
[323274658,1713863439687,-529.88033474,0.0001169,2]
[323274660,1713863439697,-597.25606466,0.0001169,2]
[323274662,1713863439707,-150.0,0.0001169,2]
[323274664,1713863439718,-500.0,0.0001169,2]
[323274665,1713863439728,-500.0,0.0001169,2]
[323274667,1713863439738,-583.82417728,0.0001169,2]
[323274668,1713863439747,-1311.66,0.0001169,2]
[323274670,1713863439758,-546.07273924,0.0001169,2]
[323274672,1713863439767,-500.0,0.0001169,2]
[323274673,1713863439777,-505.59,0.0001169,2]
[323274675,1713863439786,-500.0,0.0001169,2]
[323274677,1713863439796,-504.80855703,0.0001169,2]
[323274679,1713863439805,-505.62263145,0.0001169,2]
[323274681,1713863439815,-508.29008182,0.0001169,2]
[323274682,1713863439824,-500.0,0.0001169,2]
[323274684,1713863439833,-500.0,0.0001169,2]
[323274686,1713863439842,-688.51,0.0001169,2]
[323274687,1713863439851,-216.77981573,0.0001169,2]
[323274689,1713863439860,-500.0,0.0001169,2]
[323274690,1713863439870,-500.0,0.0001169,2]
[323274692,1713863439879,-207.91,0.0001169,2]
[323274694,1713863439888,-505.88183437,0.0001169,2]
[323274696,1713863439898,-500.0,0.0001169,2]
[323274698,1713863439907,-500.0,0.0001169,2]
[323274700,1713863439917,-503.15753355,0.0001169,2]
[323274701,1713863439927,-500.0,0.0001169,2]
[323274703,1713863439937,-1481.51,0.0001169,2]
[323274705,1713863439947,-628.93242781,0.0001169,2]
[323274706,1713863439957,-500.0,0.0001169,2]
[323274708,1713863439966,-500.0,0.0001169,2]
[323274710,1713863439975,-196.65,0.0001169,2]
[323274711,1713863439984,-578.94640226,0.0001169,2]
[323274713,1713863439993,-1071.13,0.0001169,2]
[323274715,1713863440002,-615.23689345,0.0001169,2]
[323274717,1713863440011,-500.0,0.0001169,2]
[323274718,1713863440021,-500.0,0.0001169,2]
[323274720,1713863440030,-504.12784133,0.0001169,2]
[323274722,1713863440039,-500.0,0.0001169,2]
[323274724,1713863440048,-500.0,0.0001169,2]
[323274726,1713863440057,-506.47935853,0.0001169,2]
[323274727,1713863440066,-500.0,0.0001169,2]
[323274729,1713863440075,-507.06318018,0.0001169,2]
[323274731,1713863440084,-500.0,0.0001169,2]
[323274733,1713863440093,-6180.813,0.0001169,2]
[323274734,1713863440102,-500.0,0.0001169,2]
[323274736,1713863440113,-500.0,0.0001169,2]
[323274738,1713863440126,-150.0,0.0001169,2]
[323274740,1713863440135,-384.54323858,0.0001169,2]
[323274742,1713863440144,-500.0,0.0001169,2]
[323274744,1713863440155,-534.62551604,0.0001169,2]
[323274745,1713863440164,-500.0,0.0001169,2]
[323274747,1713863440172,-471.03775123,0.0001169,2]
[323274749,1713863440181,-500.0,0.0001169,2]
[323274751,1713863440191,-165.31206238,0.0001169,2]
[323274752,1713863440200,-500.0,0.0001169,2]
[323274753,1713863440209,-500.0,0.0001169,2]
[323274754,1713863440218,-581.26634517,0.0001169,2]
[323274755,1713863440227,-500.0,0.0001169,2]
[323274756,1713863440236,-500.0,0.0001169,2]
[323274757,1713863440246,-500.0,0.0001169,2]
[323274758,1713863440255,-502.62017985,0.0001169,2]
[323274759,1713863440264,-500.0,0.0001169,2]
[323274760,1713863440273,-589.26536761,0.0001169,2]
[323274761,1713863440282,-500.0,0.0001169,2]
[323274762,1713863440292,-500.0,0.0001169,2]
[323274763,1713863440301,-1045.0,0.0001169,2]
[323274764,1713863440310,-500.0,0.0001169,2]
[323274765,1713863440320,-500.0,0.0001169,2]
[323274766,1713863440330,-500.0,0.0001169,2]
[323274767,1713863440339,-500.0,0.0001169,2]
[323274768,1713863440349,-500.0,0.0001169,2]
[323274769,1713863440358,-500.0,0.0001169,2]
[323274770,1713863440367,-500.0,0.0001169,2]
[323274771,1713863440377,-500.0,0.0001169,2]
[323274772,1713863440386,-500.0,0.0001169,2]
[323274773,1713863440395,-613.3092166,0.0001169,2]
[323274774,1713863440405,-500.0,0.0001169,2]
[323274775,1713863440414,-500.0,0.0001169,2]
[323274776,1713863440423,-907.95,0.0001169,2]
[323274777,1713863440433,-500.0,0.0001169,2]
[323274778,1713863440442,-500.0,0.0001169,2]
[323274779,1713863440452,-500.0,0.0001169,2]
[323274780,1713863440461,-500.0,0.0001169,2]
[323274781,1713863440471,-500.0,0.0001169,2]
[323274782,1713863440480,-500.0,0.0001169,2]
[323274783,1713863440489,-500.0,0.0001169,2]
[323274784,1713863440498,-500.0,0.0001169,2]
[323274785,1713863440507,-500.0,0.0001169,2]
[323274786,1713863440516,-500.0,0.0001169,2]
[323274787,1713863440526,-500.0,0.0001169,2]
[323274788,1713863440536,-500.0,0.0001169,2]
[323274789,1713863440771,-500.0,0.0001169,2]
[323274790,1713863440793,-698.31,0.0001169,2]
[323274791,1713863440802,-500.0,0.0001169,2]
[323274792,1713863440811,-177.17,0.0001169,2]
[323274793,1713863440820,-500.0,0.0001169,2]
[323274794,1713863440830,-500.0,0.0001169,2]
[323274795,1713863440839,-500.0,0.0001169,2]
[323274796,1713863440848,-500.0,0.0001169,2]
[323274797,1713863440857,-500.0,0.0001169,2]
[323274798,1713863440866,-500.0,0.0001169,2]
[323274799,1713863440877,-929.54,0.0001169,2]
[323274800,1713863440886,-500.0,0.0001169,2]
[323274801,1713863440895,-252.91472118,0.0001169,2]
[323274802,1713863440904,-500.0,0.0001169,2]
[323274803,1713863440912,-500.0,0.0001169,2]
[323274804,1713863440921,-500.0,0.0001169,2]
[323274805,1713863440931,-864.89,0.0001169,2]
[323274806,1713863440940,-669.49,0.0001169,2]
[323274807,1713863440950,-276.87277495,0.0001169,2]
[323274808,1713863440960,-43478.54,0.0001169,2]
[323274809,1713863440970,-500.0,0.0001169,2]
[323274810,1713863440980,-500.0,0.0001169,2]
[323274811,1713863440990,-2862.26,0.0001169,2]
[323274812,1713863441000,-155.5395067,0.0001169,2]
[323274813,1713863441011,-509.14764831,0.0001169,2]
[323274814,1713863441022,-4036.06,0.0001169,2]
[323274815,1713863441032,-500.0,0.0001169,2]
[323274816,1713863441043,-500.0,0.0001169,2]
[323274817,1713863441053,-939.12,0.0001169,2]
[323274818,1713863441063,-500.0,0.0001169,2]
[323274819,1713863441073,-500.0,0.0001169,2]
[323274820,1713863441083,-420.76452259,0.0001169,2]
[323274821,1713863441093,-500.0,0.0001169,2]
[323274822,1713863441103,-500.0,0.0001169,2]
[323274823,1713863441116,-5491.76,0.0001169,2]
[323274824,1713863441128,-842.34,0.0001169,2]
[323274825,1713863441138,-500.0,0.0001169,2]
[323274826,1713863441147,-500.0,0.0001169,2]
[323274827,1713863441157,-500.0,0.0001169,2]
[323274828,1713863441168,-888.76,0.0001169,2]
[323274829,1713863441177,-500.0,0.0001169,2]
[323274830,1713863441188,-500.0,0.0001169,2]
[323274831,1713863441199,-506.00049359,0.0001169,2]
[323274832,1713863441212,-500.0,0.0001169,2]
[323274833,1713863441223,-500.0,0.0001169,2]
[323274834,1713863441233,-500.0,0.0001169,2]
[323274836,1713863441243,-2037.8,0.0001169,2]
[323274838,1713863441253,-621.16623162,0.0001169,2]
[323274840,1713863441264,-500.0,0.0001169,2]
[323274842,1713863441274,-500.0,0.0001169,2]
[323274844,1713863441284,-6206.45,0.0001169,2]
[323274846,1713863441294,-500.0,0.0001169,2]
[323274848,1713863441304,-5608.48,0.0001169,2]
[323274850,1713863441313,-5608.48,0.0001169,2]
[323274852,1713863441323,-5608.48,0.0001169,2]
[323274854,1713863441332,-5608.48,0.0001169,2]
[323274856,1713863441343,-500.0,0.0001169,2]
[323274858,1713863441351,-5608.48,0.0001169,2]
[323274860,1713863441361,-5608.48,0.0001169,2]
[323274862,1713863441371,-5608.48,0.0001169,2]
[323274864,1713863441381,-5608.48,0.0001169,2]
[323274866,1713863441390,-5608.48,0.0001169,2]
[323274868,1713863441399,-5608.48,0.0001169,2]
[323274870,1713863441409,-5608.48,0.0001169,2]
[323274872,1713863441417,-5608.48,0.0001169,2]
[323274874,1713863441427,-5608.48,0.0001169,2]
[323274877,1713863441436,-5608.48,0.0001169,2]
[323274879,1713863441445,-5608.48,0.0001169,2]
[323274880,1713863441455,-5608.48,0.0001169,2]
[323274883,1713863441466,-500.0,0.0001169,2]
[323274885,1713863441476,-5608.48,0.0001169,2]
[323274887,1713863441487,-5608.48,0.0001169,2]
[323274888,1713863441498,-5608.48,0.0001169,2]
[323274891,1713863441510,-5608.48,0.0001169,2]
[323274892,1713863441520,-5608.48,0.0001169,2]
[323274895,1713863441532,-5608.48,0.0001169,2]
[323274896,1713863441541,-5608.48,0.0001169,2]
[323274898,1713863441552,-500.0,0.0001169,2]
[323274901,1713863441562,-5608.51966508,0.0001169,2]
[323274903,1713863441573,-657.57,0.0001169,2]
[323274905,1713863441584,-2723.1,0.0001169,2]
[323274907,1713863441595,-500.0,0.0001169,2]
[323274909,1713863441605,-878.46,0.0001169,2]
[323274911,1713863441615,-651.75,0.0001169,2]
[323274913,1713863441626,-500.0,0.0001169,2]
[323274915,1713863441637,-500.0,0.0001169,2]
[323274917,1713863441648,-500.89,0.0001169,2]
[323274919,1713863441658,-500.0,0.0001169,2]
[323274921,1713863441669,-500.0,0.0001169,2]
[323274923,1713863441679,-601.43,0.0001169,2]
[323274925,1713863441688,-500.0,0.0001169,2]
[323274927,1713863441699,-786.99,0.0001169,2]
[323274929,1713863441709,-2340.54,0.0001169,2]
[323274931,1713863441721,-500.0,0.0001169,2]
[323274934,1713863441733,-526.38,0.0001169,2]
[323274936,1713863441743,-500.0,0.0001169,2]
[323274938,1713863441753,-500.0,0.0001169,2]
[323274939,1713863441764,-500.0,0.0001169,2]
[323274941,1713863441774,-500.0,0.0001169,2]
[323274943,1713863441784,-500.0,0.0001169,2]
[323274945,1713863441794,-500.0,0.0001169,2]
[323274947,1713863441803,-4913.37,0.0001169,2]
[323274949,1713863441812,-3818.83,0.0001169,2]
[323274951,1713863441822,-500.0,0.0001169,2]
[323274953,1713863441832,-499.37530364,0.0001169,2]
[323274955,1713863441843,-1075.83,0.0001169,2]
[323274958,1713863441854,-500.0,0.0001169,2]
[323274959,1713863441865,-500.83162997,0.0001169,2]
[323274962,1713863441877,-500.0,0.0001169,2]
[323274964,1713863441887,-500.0,0.0001169,2]
[323274966,1713863441896,-828.92,0.0001169,2]
[323274967,1713863441906,-3010.68,0.0001169,2]
[323274969,1713863441916,-2451.56,0.0001169,2]
[323274971,1713863441926,-500.0,0.0001169,2]
[323274973,1713863441936,-500.0,0.0001169,2]
[323274975,1713863441946,-500.0,0.0001169,2]
[323274977,1713863441955,-500.0,0.0001169,2]
[323274979,1713863441966,-500.0,0.0001169,2]
[323274981,1713863441975,-508.16,0.0001169,2]
[323274983,1713863441985,-258.4555924,0.0001169,2]
[323274985,1713863441994,-500.0,0.0001169,2]
[323274987,1713863442004,-500.0,0.0001169,2]
[323274989,1713863442013,-500.0,0.0001169,2]
[323274991,1713863442023,-500.0,0.0001169,2]
[323274993,1713863442034,-500.0,0.0001169,2]
[323274995,1713863442044,-531.61,0.0001169,2]
[323274997,1713863442054,-500.0,0.0001169,2]
[323274999,1713863442063,-500.0,0.0001169,2]
[323275001,1713863442073,-9878.16,0.0001169,2]
[323275003,1713863442084,-500.0,0.0001169,2]
[323275005,1713863442094,-500.0,0.0001169,2]
[323275007,1713863442106,-804.0,0.0001169,2]
[323275009,1713863442119,-500.0,0.0001169,2]
[323275011,1713863442129,-500.0,0.0001169,2]
[323275013,1713863442139,-1601.18,0.0001169,2]
[323275015,1713863442149,-500.0,0.0001169,2]
[323275017,1713863442160,-500.0,0.0001169,2]
[323275019,1713863442170,-536.5,0.0001169,2]
[323275021,1713863442181,-500.0,0.0001169,2]
[323275023,1713863442191,-1539.31,0.0001169,2]
[323275025,1713863442201,-500.0,0.0001169,2]
[323275028,1713863442212,-550.97,0.0001169,2]
[323275030,1713863442222,-1095.57,0.0001169,2]
[323275032,1713863442232,-500.0,0.0001169,2]
[323275033,1713863442242,-576.54757018,0.0001169,2]
[323275035,1713863442253,-500.0,0.0001169,2]
[323275038,1713863442265,-500.0,0.0001169,2]
[323275040,1713863442275,-26958.96,0.0001169,2]
[323275042,1713863442287,-3800.63,0.0001169,2]
[323275044,1713863442297,-500.0,0.0001169,2]
[323275046,1713863442307,-500.0,0.0001169,2]
[323275048,1713863442316,-500.0,0.0001169,2]
[323275050,1713863442325,-500.0,0.0001169,2]
[323275052,1713863442337,-500.0,0.0001169,2]
[323275054,1713863442347,-566.71,0.0001169,2]
[323275055,1713863442357,-500.0,0.0001169,2]
[323275058,1713863442368,-1313.55,0.00011691,2]
[323275059,1713863442379,-2362.82,0.00011691,2]
[323275062,1713863442388,-1194.47,0.00011691,2]
[323275063,1713863442397,-500.0,0.00011691,2]
[323275065,1713863442407,-500.0,0.00011691,2]
[323275067,1713863442416,-500.0,0.00011691,2]
[323275069,1713863442426,-498.1579692,0.00011691,2]
[323275071,1713863442435,-1496.26,0.00011691,2]
[323275073,1713863442444,-500.0,0.00011691,2]
[323275075,1713863442454,-1872.1,0.00011691,2]
[323275077,1713863442463,-500.0,0.00011691,2]
[323275079,1713863442473,-668.07,0.00011691,2]
[323275081,1713863442483,-1186.03,0.00011691,2]
[323275083,1713863442493,-500.0,0.00011691,2]
[323275085,1713863442503,-1526.81,0.00011691,2]
[323275087,1713863442512,-655.27,0.00011691,2]
[323275089,1713863442521,-562.48,0.00011691,2]
[323275091,1713863442531,-500.0,0.00011691,2]
[323275093,1713863442541,-453.15212751,0.00011691,2]
[323275095,1713863442550,-500.0,0.00011691,2]
[323275097,1713863442560,-500.0,0.00011691,2]
[323275099,1713863442570,-500.0,0.00011691,2]
[323275101,1713863442579,-500.0,0.00011691,2]
[323275103,1713863442588,-746.6,0.00011691,2]
[323275105,1713863442598,-500.0,0.00011691,2]
[323275107,1713863442607,-490.97293598,0.00011691,2]
[323275109,1713863442619,-500.0,0.00011691,2]
[323275111,1713863442628,-500.0,0.00011691,2]
[323275113,1713863442638,-500.0,0.00011691,2]
[323275115,1713863442648,-2126.61,0.00011691,2]
[323275117,1713863442658,-570.67,0.00011691,2]
[323275119,1713863442667,-484.32336462,0.00011691,2]
[323275121,1713863442676,-591.68551201,0.00011691,2]
[323275123,1713863442686,-1562.58,0.00011691,2]
[323275125,1713863442696,-2325.9651851,0.00011697,2]
[323275127,1713863442705,-220.66660495,0.00011697,2]
[323275129,1713863442715,-195.82852517,0.00011698,2]
[323275131,1713863442725,-535.70966773,0.00011698,2]
[323275132,1713863442735,-500.0,0.00011699,2]
[323275134,1713863442745,-503.74349775,0.00011699,2]
[323275136,1713863442756,-500.0,0.00011699,2]
[323275138,1713863442767,-500.0,0.00011699,2]
[323275140,1713863442777,-500.0,0.00011699,2]
[323275142,1713863442788,-500.0,0.00011699,2]
[323275144,1713863442798,-740.35,0.00011699,2]
[323275145,1713863442807,-500.0,0.00011699,2]
[323275146,1713863442816,-500.0,0.00011699,2]
[323275147,1713863442827,-500.0,0.00011699,2]
[323275148,1713863442836,-515.25988869,0.00011699,2]
[323275149,1713863442846,-500.0,0.00011699,2]
[323275150,1713863442854,-500.0,0.00011699,2]
[323275151,1713863442864,-500.0,0.00011699,2]
[323275152,1713863442876,-500.0,0.00011699,2]
[323275153,1713863442885,-500.0,0.00011699,2]
[323275154,1713863442894,-500.0,0.00011699,2]
[323275156,1713863442903,-501.75128079,0.00011699,2]
[323275158,1713863442913,-500.0,0.00011699,2]
[323275161,1713863442923,-500.0,0.00011699,2]
[323275163,1713863442932,-504.30162004,0.00011699,2]
[323275166,1713863442941,-500.0,0.00011699,2]